Cogmind - Beta 14 @@@ ROGUE MODE // 2024.12.25 @ 21:42:50 Player: lazy_engineer Result: Self-destructed Performance ------------- Evolutions (2) 1000 Regions Visited (4) 800 Robots Destroyed (51) 255 Value Destroyed (976) 976 Prototype IDs (1) 20 Alien Tech Used (0) 0 Bonus (38) 38 TOTAL SCORE: 3089 Bonus ------- High Alert Combat Kills 15 Follower Combat Kills 61 Friendly Fire -38 Cogmind --------- Core Integrity 521/550 Matter 30/300 Energy 100/100 System Corruption 0% Temperature Cool (18) Movement Core (250) Ox4 Location -8/Materials Parts ------- > --- POWER (1) -------- (None) > --- PROPULSION (2) --- Improved Treads > --- UTILITY (6) ------ Medium Storage Unit Signal Interpreter Transport Network Coupler Improved Targeting Computer Hacking Suite > --- WEAPON (2) ------- Improved Assault Rifle > --- INVENTORY (10) --- Light Ion Engine Improved Hover Unit Improved Hover Unit Improved Terrain Scanner Improved Assault Rifle Improved Assault Rifle Mining Laser Peak State ------------ > --- POWER ------------ Light Nuclear Core > --- PROPULSION ------- Light Treads Wheel > --- UTILITY ---------- Medium Storage Unit Trap Scanner Light Armor Plating Hacking Suite > --- WEAPON ----------- Improved Assault Rifle Improved Assault Rifle > --- INVENTORY -------- Improved Hover Unit Improved Hover Unit Signal Interpreter Improved Terrain Scanner Transport Network Coupler Light Armor Plating Improved Assault Rifle Improved Assault Rifle Grenade Launcher Mining Laser [Rating: 20] Favorites ----------- Power Light Ion Engine Engine Light Ion Engine Power Core Light Nuclear Core Propulsion Light Treads Treads Light Treads Wheel Wheel Utility Small Storage Unit Device Trap Scanner Storage Small Storage Unit Processor Improved Targeting Computer Hackware Hacking Suite Protection Light Armor Plating Weapon Grenade Launcher Ballistic Gun Improved Assault Rifle Launcher Grenade Launcher Build | -11 -10 -10 -9 -8 ------- Run | Yrd Mat Min Mat Mat Slots Evolved 4 | . . . 2 2 Power . | . . . . . Propulsion . | . . . . . Utility 4 | . . . 2 2 Weapon . | . . . . . Parts Attached 38 | 6 1 4 23 4 Power 8 | 1 . 2 5 . Engine 7 | 1 . 2 4 . Core 1 | . . . 1 . Reactor . | . . . . . Propulsion 9 | 2 1 . 5 1 Treads 5 | 1 1 . 2 1 Leg . | . . . . . Wheel 4 | 1 . . 3 . Hover . | . . . . . Flight . | . . . . . Utility 13 | 2 . . 8 3 Device 3 | 1 . . 2 . Storage 2 | 1 . . 1 . Processor 4 | . . . 2 2 Hackware 1 | . . . 1 . Protection 3 | . . . 2 1 Artifact . | . . . . . Weapon 8 | 1 . 2 5 . Energy Gun . | . . . . . Energy Cannon . | . . . . . Ballistic Gun 5 | 1 . 1 3 . Ballistic Cannon . | . . . . . Launcher 3 | . . 1 2 . Special Weapon . | . . . . . Impact Weapon . | . . . . . Slashing Weapon . | . . . . . Piercing Weapon . | . . . . . Special Melee Weapon . | . . . . . Unidentified Prototypes 1 | . . . 1 . Parts Lost 16 | . 1 1 10 4 Power 4 | . . 1 2 1 Propulsion 4 | . . . 3 1 Utility 5 | . 1 . 3 1 Weapon 3 | . . . 2 1 Highest Loss Streak 4 | . 1 1 4 4 To Critical Strikes . | . . . . . Average Slot Usage (%) 84 | . 73 82 91 97 Engine 11 | . 14 13 8 9 Treads 21 | . 26 28 13 8 Wheel 2 | . 1 . 6 8 Device 5 | . 2 . 14 . Storage 12 | . 14 14 11 9 Processor 3 | . . . 5 27 Hackware 1 | . . . 2 9 Protection 2 | . . . 6 8 Ballistic Gun 15 | . 14 14 18 9 Launcher 6 | . . 11 3 8 Peak Build Rating 20 | 6 7 7 20 18 Average Rating 10 | 4 6 6 16 17 On Entrance 6 | . 6 6 7 14 Naked Turns . | . . . . . Heaviest Build 31 | 11 11 15 31 22 Greatest Support 40 | 10 40 40 40 10 Greatest Overweight (x) 5 | 1 1 . 5 5 Average Overweight (x) . | . . . 1 2 Largest Inventory Capacity 10 | 8 8 8 10 10 Average Capacity 8 | 7 8 8 8 10 Most Carried 10 | 5 7 8 10 9 Average Carried 7 | 2 6 7 8 7 Final Capacity 10 | 8 8 8 10 10 Final Carried 10 | 5 7 8 10 7 Class Distribution -------------------- 77% | Mutant 22% | Scavenger-Mutant Dominant Class ---------------- Mutant | -10/Materials Mutant | -10/Mines Scavenger-Mutant | -9/Materials Scavenger-Mutant | -8/Materials Resources | -11 -10 -10 -9 -8 ----------- Run | Yrd Mat Min Mat Mat Matter Collected 991 | 314 121 98 458 . Remotely 227 | 181 46 . . . Salvage Created 1396 | 127 310 93 734 132 Parts 93 | 9 16 8 50 10 Haulers Intercepted 3 | . 1 . 2 . Recyclers Shooed . | . . . . . Parts Field Recycled . | . . . . . Retrieved Matter . | . . . . . Parts Self-Destructed . | . . . . . Prevented . | . . . . . Kills | -11 -10 -10 -9 -8 ------- Run | Yrd Mat Min Mat Mat Combat Hostiles Destroyed 29 | . 6 5 15 3 Guns 24 | . 6 2 15 1 AOE 5 | . . 3 . 2 Classes Destroyed 9 | 2 4 1 2 . Worker 7 | . . 1 6 . Builder 3 | . . . 2 1 Tunneler 4 | 4 . . . . Hauler 3 | . 1 . 2 . Recycler 2 | 1 1 . . . Watcher 3 | . 1 . 1 1 Swarmer 12 | . 3 3 6 . Grunt 12 | . 3 2 4 3 Sentry 5 | . . . 5 . Best Kill Streak 8 | 2 6 3 8 4 Combat Bots Only 5 | . 5 3 4 3 Max Kills in Single Turn 2 | 1 1 2 2 2 Gunslinging . | . . . . . Exploded 2 | . . 2 . 1 Melee . | . . . . . Uniques/NPCs Destroyed . | . . . . . Combat | -11 -10 -10 -9 -8 -------- Run | Yrd Mat Min Mat Mat Hostile Shots Fired 208 | . 57 15 114 22 Missed 64 | . 16 6 34 8 Damage Taken 1899 | . 415 107 1129 248 Core 229 | . 107 . 93 29 Absorbed by Shields . | . . . . . Regen/Repaired (Parts) 55 | . . . 55 . Core Remaining (%) 77 | 100 . 57 76 . Volleys Fired 144 | 18 43 6 68 9 Largest 2 | 1 1 2 2 2 Hottest 53 | 20 20 50 53 53 Shots Fired 221 | 18 43 10 133 17 Gun 204 | 18 43 6 128 9 Cannon . | . . . . . Launcher 17 | . . 4 5 8 Special . | . . . . . Kinetic 204 | 18 43 6 128 9 Thermal . | . . . . . Explosive 17 | . . 4 5 8 Electromagnetic . | . . . . . Robot Hit Streak 11 | 4 5 4 10 11 Robot Miss Streak 4 | 2 2 1 4 1 Penetration Max . | . . . . . Secondary Targets 3 | . . . 3 . Max Gunslinging Chain 1 | . . . 1 . Shots Hit Robots 148 | 13 29 5 88 13 Core Hits 89 | 6 14 10 40 19 Critical Kills . | . . . . . Critical Parts Destroyed 1 | . . . 1 . Critical Strikes 1 | . . . 1 . Destroy 1 | . . . 1 . Melee Attacks . | . . . . . Impact . | . . . . . Slashing . | . . . . . Piercing . | . . . . . Sneak Attacks . | . . . . . Combat Hostiles . | . . . . . Follow-up Attacks . | . . . . . Damage Inflicted 3076 | 168 363 272 1563 710 Guns 1970 | 168 363 47 1287 105 Cannons . | . . . . . Explosions 1106 | . . 225 276 605 Melee . | . . . . . Ramming . | . . . . . Kinetic 1970 | 168 363 47 1287 105 Thermal . | . . . . . Explosive 1106 | . . 225 276 605 Electromagnetic . | . . . . . Impact . | . . . . . Slashing . | . . . . . Piercing . | . . . . . Highest Corruption . | . . . . . Average Corruption . | . . . . . Corruption Purged . | . . . . . Corruption Blocked . | . . . . . Overload Shots . | . . . . . Overflow Damage 33 | . . . 6 27 Projectiles . | . . . . . Explosions 33 | . . . 6 27 Melee . | . . . . . Knockbacks . | . . . . . Impact . | . . . . . Kinetic . | . . . . . Secondary . | . . . . . Self-Inflicted Damage 82 | . . . 44 38 Shots 3 | . . . 2 1 Rammed . | . . . . . Targets Rammed . | . . . . . Kicked . | . . . . . Crushed . | . . . . . Highest Temperature 46 | . . 18 46 30 Average Temperature 15 | . . 12 15 15 Received Heat Transfer 699 | . 135 60 369 135 Siege Activations . | . . . . . Robots Corrupted . | . . . . . Combat Hostiles . | . . . . . Parts Fried . | . . . . . Impact Corruptions . | . . . . . Robots Melted . | . . . . . Combat Hostiles . | . . . . . Parts Melted . | . . . . . Heat Transferred . | . . . . . Parts Sabotaged . | . . . . . Parts Stolen . | . . . . . Parts Stripped . | . . . . . Power Chain Reactions . | . . . . . Alert | -11 -10 -10 -9 -8 ------- Run | Yrd Mat Min Mat Mat Peak Influence 460 | 25 153 89 460 258 Initial 102 | . 16 11 . 102 Average 105 | 9 43 40 228 152 Maximum Alert Level 2 | . . . 2 1 Low Security (%) 82 | 100 100 100 49 86 Level 1 12 | . . . 37 13 Level 2 4 | . . . 13 . Level 3 . | . . . . . Level 4 . | . . . . . Level 5 . | . . . . . High Security . | . . . . . Max Security . | . . . . . Squads Dispatched 9 | . 3 . 3 3 Investigation 4 | . 1 . 2 1 Extermination . | . . . . . Reinforcement 5 | . 2 . 1 2 Assault . | . . . . . Garrison . | . . . . . Intercept . | . . . . . Searches Triggered . | . . . . . Construction Impeded 1 | . . . . 1 Haulers Reinforced . | . . . . . Active Scanning Responses . | . . . . . Cargo Convoy Interrupts . | . . . . . Stealth | -11 -10 -10 -9 -8 --------- Run | Yrd Mat Min Mat Mat Distress Signals 2 | . 1 . 1 . Communications Jammed . | . . . . . Distress Signals . | . . . . . Times Spotted 54 | . 13 5 27 9 Peak Tracking Total 7 | . 4 3 5 7 Tactical Retreats 3 | . . . 3 . Traps | -11 -10 -10 -9 -8 ------- Run | Yrd Mat Min Mat Mat Traps Triggered 1 | . 1 . . . Indirectly . | . . . . . Trap Hack Attempts . | . . . . . Triggered . | . . . . . Disarmed . | . . . . . Reprogrammed . | . . . . . Reused . | . . . . . Traps Extracted . | . . . . . Installed . | . . . . . Triggered . | . . . . . Machines | -11 -10 -10 -9 -8 ---------- Run | Yrd Mat Min Mat Mat Machines Disabled 2 | . . . 2 . Max in Single Turn 1 | . . . 1 . Machines Repaired . | . . . . . Machines Dismantled . | . . . . . Machines Sabotaged . | . . . . . Overloaded Fab Kills . | . . . . . Hacking | -11 -10 -10 -9 -8 --------- Run | Yrd Mat Min Mat Mat Machines Accessed 8 | . 2 . 5 1 Terminals 7 | . 2 . 4 1 Fabricators . | . . . . . Repair Stations 1 | . . . 1 . Recycling Units . | . . . . . Scanalyzers . | . . . . . Garrison Access . | . . . . . Total Hacks 27 | . 8 . 14 5 Successful 15 | . 4 . 10 1 Failed 12 | . 4 . 4 4 Catastrophic 3 | . 1 . 1 1 Database Lockouts . | . . . . . Manual 20 | . 5 . 10 5 Terminals 24 | . 8 . 11 5 Fabricators . | . . . . . Repair Stations 3 | . . . 3 . Recycling Units . | . . . . . Scanalyzers . | . . . . . Garrison Access . | . . . . . Terminal Hacks 13 | . 4 . 8 1 Alert Level 7 | . 2 . 4 1 Unreport Threat 3 | . 1 . 2 . Recall Investigation 2 | . . . 2 . Zone Layout 1 | . 1 . . . Fabricator Hacks . | . . . . . Repair Station Hacks 2 | . . . 2 . Scan Component 1 | . . . 1 . Repair 1 | . . . 1 . Recycling Unit Hacks . | . . . . . Scanalyzer . | . . . . . Garrison Access Hacks . | . . . . . Unauthorized Hacks . | . . . . . Terminals . | . . . . . Fabricators . | . . . . . Repair Stations . | . . . . . Recycling Units . | . . . . . Scanalyzers . | . . . . . Garrison Access . | . . . . . Data Cores Recovered 1 | . . . 1 . Used . | . . . . . Hacking Detections 7 | . 2 . 4 1 Full Trace Events 3 | . . . 2 1 Feedback Events . | . . . . . Feedback Blocked . | . . . . . Robot Schematics Acquired . | . . . . . Robots Built . | . . . . . Authchips . | . . . . . Time . | . . . . . Total Robot Build Rating . | . . . . . Part Schematics Acquired . | . . . . . Parts Built . | . . . . . Authchips . | . . . . . Time . | . . . . . Total Part Build Rating . | . . . . . Parts Repaired 1 | . . . 1 . Time 13 | . . . 13 . Parts Recycled . | . . . . . Recycled Matter . | . . . . . Retrieved Matter . | . . . . . Retrieved Components . | . . . . . Parts Scanalyzed . | . . . . . Part Schematics Acquired . | . . . . . Parts Damaged . | . . . . . Bothacking | -11 -10 -10 -9 -8 ------------ Run | Yrd Mat Min Mat Mat Used RIF Installer . | . . . . . Robots Hacked . | . . . . . Non-combat . | . . . . . Combat . | . . . . . Robot Hacks Applied . | . . . . . Relay Couplers Released . | . . . . . Fabnet Peak Effective % . | . . . . . Robots Rewired . | . . . . . Allies Hacked . | . . . . . Hacks Repelled . | . . . . . Allies | -11 -10 -10 -9 -8 -------- Run | Yrd Mat Min Mat Mat Total Allies 3 | . . 3 . . Largest Group 3 | . . 3 3 . Highest-Rated Group 40 | . . 40 40 . Highest-Rated Ally 16 | . . 16 16 . Total Orders . | . . . . . Ally Attacks 32 | . . . 32 . Total Damage 275 | . . . 275 . Kills 6 | . . . 6 . Allies Corrupted . | . . . . . Allies Melted . | . . . . . Intel | -11 -10 -10 -9 -8 ------- Run | Yrd Mat Min Mat Mat Robot Analysis Total . | . . . . . Derelict Logs Recovered 1 | . . 1 . . Drone Launches . | . . . . . Drone Recoveries . | . . . . . Exploration | -11 -10 -10 -9 -8 ------------- Run | Yrd Mat Min Mat Mat Turns Passed 2119 | 117 286 915 678 123 Spaces Moved 1153 | 72 132 547 321 81 Core 16 | 9 . . 6 1 Treads 773 | . 111 547 115 . Legs . | . . . . . Wheels 364 | 63 21 . 200 80 Hover . | . . . . . Flight . | . . . . . Fastest Speed 50 | 50 95 160 80 110 Average Speed 141 | 85 149 160 128 112 Slowest Speed 300 | 95 160 160 300 300 Overloaded Moves . | . . . . . Propulsion Burnouts . | . . . . . Robots Hopped . | . . . . . Cave-ins Triggered . | . . . . . Exploration Rate (%) 36 | 5 31 98 36 12 Regions Visited 4 Branch Regions 1 Pre-discovered Areas 1 | . . 1 . . Known Exits Taken . | . . . . . Unknown Exits Taken 4 | 1 1 1 1 . Scrap Searched 1 | . . 1 . . Spaces Dug . | . . . . . Terrain Destroyed 115 | . . 29 30 56 Melee . | . . . . . Projectile . | . . . . . AOE 115 | . . 29 30 56 Terrain Rammed . | . . . . . Walls Destroyed . | . . . . . Machines Disabled . | . . . . . Actions | -11 -10 -10 -9 -8 --------- Run | Yrd Mat Min Mat Mat Total 1413 | 109 177 577 454 96 Wait 34 | 3 . 16 15 . Move 1149 | 71 131 546 320 81 Hop . | . . . . . Pick Up 33 | 11 2 3 16 1 Fast Attach 11 | . . 1 10 . Attach 19 | 6 . 2 7 4 Detach . | . . . . . Swap 8 | . 1 1 6 . Drop 15 | . . 2 12 1 Fire 144 | 18 43 6 68 9 Melee . | . . . . . Ram . | . . . . . Kick . | . . . . . Crush . | . . . . . Escape Stasis . | . . . . . Rewire . | . . . . . Trap . | . . . . . Miscellaneous . | . . . . . Route ------- -11/Scrapyard -10/Materials -10/Mines (discovered 2 exits: *Mat x2) -9/Materials -8/Materials (discovered 1 exit: [*Sto]) History --------- Turn | Location | Event 19 | -11/Scrapyard | Discovered new exit (range 16) 118 | -11/Scrapyard | Entered Materials 311 | -10/Materials | Build established: Mutant 385 | -10/Materials | Discovered new exit (range 13) 404 | -10/Materials | Entered Mines 497 | -10/Mines | Learned Materials garrison access intel 507 | -10/Mines | Discovered new exit (range 13) 610 | -10/Mines | Discovered new exit (range 13) 862 | -10/Mines | Learned location of Storage (-8) 1311 | -10/Mines | Assisted by bots powering up and referring to "LRC-V3" 1319 | -10/Mines | Entered Materials 1319 | -9/Materials | Accompanied by 3 allies 1319 | -9/Materials | Evolved 2 slots: Utility x2 1363 | -9/Materials | Repaired Grenade Launcher 1615 | -9/Materials | Lost 3 allies 1924 | -9/Materials | Discovered new exit (range 7) 1988 | -9/Materials | Lost 4 parts (1p1n1u1w) 1996 | -9/Materials | Build established: Scavenger-Mutant 1997 | -9/Materials | Entered another Materials area 1997 | -8/Materials | Evolved 2 slots: Utility x2 1998 | -8/Materials | Loaded intel: 1 garrison access location 2049 | -8/Materials | Discovered new exit (range 9) 2120 | -8/Materials | Self-destructed Last Messages --------------- 02106_ ALERT: Construction progress impeded, dispatching reinforcements to local area. 02107_ U-05 Engineer builds a Door. 02108_ U-05 Engineer lays Concrete. 02109_ G-47 Trooper destroyed. 02110_ U-05 Engineer lays Concrete. 02111_ U-05 Engineer builds a Wall. 02112_ U-05 Engineer builds a Door. 02113_ Wheel destroyed. 02114_ U-05 Engineer lays Concrete. 02114_ G-47 Trooper destroyed. 02114_ Destroyed Imp. Heat Sink. 02115_ Grenade Launcher destroyed. 02116_ U-05 Engineer lays Concrete. 02116_ U-05 Engineer builds a Wall. 02117_ U-05 Engineer lays Concrete. 02117_ Slug penetrates Wall. 02117_ Lgt. Armor Plating destroyed. 02118_ U-05 Engineer builds a Wall. 02120_ Lgt. Ion Engine destroyed. Map ----- +----------------------------------------------------+ | ?????????????????????????????????????????????????? | | ?????????????????????????????????????????????????? | | ?????#####???????????????????????????????????????? | | ?????# #???????????????????????????????????????? | | ?????# #???????????????????????????????????????? | | ?????# #????????????#######????????????????????? | | +#+### #####+######## ###+?????????????????? | | ??????????????????? | | < ?a?????????????????? | | ????????????????????? | | ### ##+########## #????????????????????? | | ???# = # #?### ## ???????????????????? | | ????# %* # """ #??## ## ???????????????????? | | ????## # """ #?? ????????????????????? | | ????# # """ #?? ????????????????????? | | ?????# ## #####= % ????????????????????? | | ????## ## """ + u %= ????????????????????? | | ????# # """ ### hggg #????????????????????? | | ????# # """ #?## #????????????????????? | | ????# + ! #??? #?????????????????????? | | ????#= ! ######+###???# u#?????????????????????? | | ????# =#????# #?????# #?????????????????????? | | ????#######????# #?????# #?????????????????????? | | ??????????????## #?????# #?????????????????????? | | ??????########## ##??##u ##????????????????????? | | ??????# # ######r @ #????????????????????? | | ??????# # #????????????????????? | | ??????# u T #????????????????????? | | ??????# # #????????????????????? | | ??????# ###+#### #????????????????????? | | ??????# "??## ??#######????????????????????? | | ?a????# ?????# ?????????????????????????????? | | ??????# ???????#! !?????????????????????????????? | | ????????????????# ?????????????????????????????? | | a???????????????###+#????????????????????????????? | | ?????????????????????????????????????????????????? | | ?????????????????????????????????????????????????? | | ?????????????????????????????????????????????????? | | ?????????????????????????????????????????????????? | | ?????????????????????????????????????????????????? | | ?????????????????????????????????????????????????? | | ?????????????????????????????????????????????????? | | ?????????????????????????????????????????????????? | | ?????????????????????????????????????????????????? | | ?????????????????????????????????????????????????? | | ?????????????????????????????????????????????????? | | ?????????????????????????????????????????????????? | | ?????????????????????????????????????????????????? | | ?????????????????????????????????????????????????? | | ?????????????????????????????????????????????????? | +----------------------------------------------------+ Best States ------------- Heat Dissipation 31 Energy Generation 14 Energy Capacity 265 Matter Stores 300 Matter Capacity 300 Sight Range 16 Terrain Scan Range 16 Terrain Scan Density 10 Armor Coverage 300 Evasion (%) 50 Targeting Accuracy 6 Recoil Reduction 2 Offensive Hacking 10 Item Schematics ----------------- None Robot Schematics ------------------ None Fabricated ------------ Nothing Alien Tech Used ----------------- None Achievements -------------- None Challenges ------------ None Game ------ Seed BattleGrenadeProjector Manual? 0 Play Time 00:22:42 Cumulative 41.6 hours Start 2024.12.25 @ 21:20:49 End 2024.12.25 @ 21:42:50 Sessions 1 Manual Loads 0 Difficulty Rogue Special Mode None Game No. 89 Rogue 89 Adventurer 0 Explorer 0 Win Type - Total 0 Types 0/0/0/0/0/0/0/0/0 Lore% 16 Gallery% 28 Achievement% 27 Wizard Run 0 Options --------- Layout 0 ASCII 0 Keyboard 0 Movement Mouse Keybinds 0 Fullscreen 1 Font 24/Smallcaps Map View 76x50 Zoom Use 0% Tactical HUD 1 Map Filters NONE Filters NONE Steam 1 RUN: ae356665-eee8-4a81-ac53-67b6e9d1b5ff